bitfinex/quotes_ETHUSD_20260305
["timestamp","ask_amount","ask_price","bid_price","bid_amount"]
[1772725512789,2.52036495,2082.6,2082.2,0.83]
[1772725513199,0.001,2082.6,2082.2,0.83]
[1772725513693,2.52036495,2082.6,2082.2,0.83]
[1772725514082,2.52036495,2082.6,2081.9,0.83]
[1772725514475,2.52036495,2082.6,2082.0,0.83]
[1772725514697,0.001,2082.2,2082.0,0.83]
[1772725514894,0.001,2082.2,2081.6,1.20099923]
[1772725515097,0.001,2082.2,2081.7,0.83]
[1772725515806,0.001,2082.6,2081.9,0.77407478]
[1772725516007,0.001,2082.6,2081.8,1.20088385]
[1772725516571,2.51936495,2082.5,2081.8,1.20088385]
[1772725516810,0.001,2082.6,2081.9,0.83]
[1772725517518,2.52036495,2082.6,2082.0,0.83]
[1772725517724,0.001,2082.6,2082.1,1.20071082]
[1772725518316,3.72050502,2083.1,2082.2,1.59615013]
[1772725518814,2.51936495,2083.0,2082.3,0.831]
[1772725519387,2.51936495,2083.0,2081.8,1.9592058]
[1772725519627,2.52066626,2082.8,2081.9,0.831]
[1772725519988,2.52066626,2082.8,2081.6,4.80394107]
[1772725520192,2.52066626,2082.8,2082.0,0.831]
[1772725520424,2.52066626,2082.8,2082.0,1.58932195]
[1772725520714,2.52066626,2082.8,2082.0,0.831]
[1772725520919,2.52066626,2082.8,2081.7,0.75437793]
[1772725520920,2.52066626,2082.8,2082.1,0.831]
[1772725521415,3.72183851,2083.1,2082.1,1.58143767]
[1772725521588,2.52166626,2083.1,2082.2,5.55281965]
[1772725521791,2.52066626,2083.0,2082.3,1.20059549]
[1772725521988,2.52066626,2083.0,2082.4,0.831]
[1772725522188,2.52166626,2083.1,2082.5,0.831]
[1772725522412,3.72180348,2083.1,2082.5,0.831]
[1772725522916,3.72180984,2083.1,2082.3,1.95103316]
[1772725523218,3.72180622,2083.1,2082.4,0.831]
[1772725523421,2.52166626,2083.1,2082.4,0.831]
[1772725523720,3.72180459,2083.1,2082.5,1.20048019]
[1772725524123,3.72180459,2083.1,2082.6,0.831]
[1772725524300,2.52166626,2083.1,2082.6,0.831]
[1772725524624,2.52066626,2083.7,2082.7,0.73769448]
[1772725525123,2.52066626,2084.0,2082.9,0.73769448]
[1772725525323,2.52066626,2083.8,2082.9,0.73769448]
[1772725525495,2.52066626,2083.8,2083.0,0.831]
[1772725525695,3.720402,2083.8,2083.1,1.20013441]
[1772725525895,3.720402,2083.8,2082.8,4.80121422]
[1772725526194,3.720402,2083.8,2083.2,0.831]
[1772725526394,2.52066626,2083.7,2083.2,0.831]
[1772725526719,0.002,2083.5,2083.2,0.831]
[1772725526919,3.71928257,2084.0,2083.2,0.831]
[1772725527092,3.71928257,2084.0,2083.0,0.72991286]
[1772725527493,2.51966626,2084.0,2083.1,0.831]
[1772725527695,3.71928701,2084.0,2083.2,1.2000768]
[1772725527895,2.48521032,2084.5,2083.3,0.831]
[1772725528364,2.48521032,2084.5,2083.3,1.55806968]
[1772725529007,2.48521032,2084.5,2083.4,0.72327426]
[1772725529201,2.48521032,2084.5,2083.2,1.2000768]
[1772725529202,2.48521032,2084.5,2083.5,0.832]
[1772725529617,2.48521032,2084.5,2083.2,1.2000768]
[1772725529822,2.48521032,2084.3,2083.4,1.1999616]
[1772725530201,2.48521032,2084.4,2083.4,1.91938551]
[1772725530400,2.48521032,2084.4,2083.5,0.832]
[1772725530604,2.48521032,2084.4,2083.1,0.71942391]
[1772725530803,2.48521032,2084.4,2083.2,5.6320768]
[1772725531116,2.48521032,2084.2,2083.2,0.832]
[1772725531423,2.48521032,2084.2,2082.6,4.80155434]
[1772725531623,2.48521032,2084.2,2082.4,4.80177389]
[1772725531624,2.48521032,2083.8,2082.3,4.80231335]
[1772725531812,2.48521032,2083.8,2082.6,0.832]
[1772725531813,2.48521032,2083.5,2082.6,0.832]
[1772725532511,2.48521032,2083.5,2082.1,1.20178068]
[1772725532711,2.48521032,2083.5,2082.2,0.832]
[1772725533133,2.48521032,2083.5,2082.4,1.78649288]
[1772725533332,2.48521032,2083.5,2082.5,0.70789764]
[1772725534024,2.48521032,2083.5,2082.6,1.20042254]
[1772725534344,2.48521032,2083.8,2082.7,2.61754941]
[1772725534537,1.19966146,2084.0,2082.9,2.61754941]
[1772725534924,3.68479819,2084.1,2082.9,2.61754941]
[1772725535121,2.48521032,2084.5,2082.9,2.61754941]
[1772725536010,2.48521032,2084.3,2083.0,4.64874144]
[1772725536518,2.48521032,2084.3,2083.1,0.831]
[1772725536727,2.74944962,2084.2,2082.8,4.8009986]
[1772725536942,2.48521032,2083.8,2082.5,1.20048019]
[1772725537145,2.48521032,2083.6,2082.4,2.98698664]
[1772725537424,2.48521032,2083.6,2082.5,0.831]
[1772725537813,2.48521032,2083.6,2082.4,1.20049376]
[1772725538118,2.48521032,2083.3,2082.5,2.03146981]
[1772725540959,2.48521032,2083.5,2082.8,0.0011]
[1772725542027,1.1999616,2083.4,2082.8,1.20140727]
[1772725542363,2.48521032,2083.3,2082.8,0.0011]
[1772725542729,4.79938815,2083.6,2082.8,0.0011]
[1772725542730,3.68509442,2083.6,2082.8,0.0011]
[1772725543667,2.48521032,2083.5,2082.8,0.0011]
[1772725544046,2.48521032,2083.5,2082.9,0.831]
[1772725544243,1.1999616,2083.4,2082.9,2.03119745]
[1772725544435,1.1999616,2083.4,2082.8,2.03240391]
[1772725544836,3.68515802,2083.5,2082.8,2.03240391]
[1772725545674,2.38752262,2083.5,2082.8,2.03240391]
[1772725545958,3.68476801,2084.2,2082.9,2.61754941]
[1772725546160,4.79900403,2084.3,2082.9,2.61754941]
[1772725546161,1.20044675,2084.3,2083.1,2.61754941]
[1772725546378,3.68565707,2084.3,2083.1,2.61754941]
[1772725546527,3.68565707,2084.3,2083.2,0.831]
[1772725546731,3.68565707,2084.3,2083.2,3.44854941]
[1772725547264,3.68565707,2084.3,2083.3,0.831]
[1772725547424,2.48621032,2084.3,2083.3,0.831]
[1772725547625,2.48621032,2084.3,2083.3,3.44854941]
[1772725547626,1.20045504,2084.3,2083.3,3.44854941]
[1772725548092,2.48521032,2083.3,2082.5,0.0011]
[1772725548374,2.45220906,2083.1,2082.5,0.0011]
[1772725548539,2.48521032,2082.9,2082.5,0.0011]
[1772725548735,2.75460058,2082.8,2082.5,0.0011]
[1772725548926,2.48521032,2082.9,2082.5,0.0011]
[1772725549942,2.66676765,2083.3,2082.5,0.0011]
[1772725550154,3.86680145,2083.3,2082.5,0.0011]
[1772725550343,3.86680145,2083.3,2082.6,0.83]
[1772725550542,2.66676765,2083.2,2082.5,0.0011]
[1772725550859,7.46628472,2083.6,2082.7,0.83]
[1772725551055,4.79951707,2083.6,2082.8,0.83]
[1772725551361,2.66676765,2083.5,2082.8,0.83]
[1772725551738,1.19981973,2083.7,2082.8,0.83]
[1772725552131,3.8664787,2083.9,2082.9,1.20024965]
[1772725552563,2.75578652,2083.8,2082.9,1.20024965]
[1772725552761,3.8664787,2083.9,2082.9,1.20024965]
[1772725553232,2.66676765,2083.8,2083.0,0.83]
[1772725553967,2.66676765,2083.8,2082.8,4.8009986]
[1772725554171,2.66676765,2083.8,2081.3,4.80458627]
[1772725554172,1.20053784,2082.4,2081.3,4.80458627]
[1772725554456,1.20053784,2082.4,2081.9,0.0033]
[1772725554457,2.66676765,2082.3,2081.9,0.0033]
[1772725554864,2.66676765,2082.3,2081.9,0.0011]
[1772725555372,2.66676765,2082.1,2081.9,0.0011]
[1772725556348,2.66676765,2081.9,2081.2,2.00646347]
[1772725556562,2.66676765,2081.9,2081.2,2.00976347]
[1772725557359,2.66676765,2081.9,2081.2,3.21096162]
[1772725557857,1.20074753,2082.1,2081.2,3.21096162]
[1772725558232,4.8038215,2082.2,2081.2,3.21096162]
[1772725558441,7.47058915,2082.2,2081.2,3.21096162]
[1772725558642,2.66676765,2082.0,2081.2,3.11349002]
[1772725558860,2.66676765,2082.0,2081.2,1.91227577]
[1772725560103,2.66676765,2082.0,2081.2,0.0033]
[1772725560248,1.20082616,2081.9,2081.2,0.0033]
[1772725560447,3.86759381,2081.9,2081.2,0.0033]
[1772725560978,2.66676765,2081.9,2081.2,0.0033]
[1772725561748,2.66676765,2081.9,2081.3,0.83]
[1772725561947,2.66676765,2081.9,2081.4,0.8322]
[1772725562181,1.20079921,2082.0,2081.4,0.8322]
[1772725562458,4.80261729,2082.2,2081.5,0.0011]
[1772725562658,2.66676765,2082.1,2081.5,0.0011]
[1772725562858,2.66676765,2082.1,2081.6,0.0022]
[1772725563976,2.66676765,2082.1,2081.6,0.8322]
[1772725564168,2.66676765,2082.1,2081.6,0.8333]
[1772725564883,3.8675208,2082.1,2081.6,2.03427409]
[1772725565063,3.8675208,2082.1,2081.6,0.8333]
[1772725565465,3.8675208,2082.1,2081.7,0.83]
[1772725565665,2.66676765,2082.0,2080.7,0.87934219]
[1772725566017,2.66676765,2081.5,2080.8,0.829]
[1772725566213,2.66676765,2081.5,2080.7,0.829]
[1772725567132,1.20111463,2081.4,2080.8,1.20146097]
[1772725567282,1.20111463,2081.4,2080.7,2.03047208]
[1772725567616,7.47122618,2081.5,2080.7,2.03047208]
[1772725567617,1.20106208,2081.5,2080.7,2.03047208]
[1772725567784,1.76331323,2081.8,2080.7,2.03047208]
[1772725567785,1.76331323,2081.8,2081.4,0.0011]
[1772725567991,5.63096835,2081.8,2081.4,0.0011]
[1772725568281,5.63096835,2081.8,2081.4,0.8301]
[1772725568716,2.66676765,2081.7,2081.4,0.0011]
[1772725569120,2.66676765,2081.5,2081.1,0.0011]
[1772725569887,2.66676765,2081.3,2080.6,0.0011]
[1772725570203,2.66676765,2080.7,2080.2,0.0011]
[1772725570893,2.66776765,2080.7,2080.2,0.0011]
[1772725571085,3.86834411,2080.6,2080.2,0.0011]
[1772725571288,2.66676765,2080.5,2080.2,0.0011]
[1772725572006,1.20157646,2080.6,2080.2,0.0011]
[1772725572190,2.66676765,2080.5,2080.2,0.0011]
[1772725572385,0.001,2080.7,2080.2,0.0011]
[1772725572614,1.122,2081.3,2080.2,0.0011]
[1772725572615,1.20023005,2081.2,2080.2,0.0011]
[1772725572819,3.86794292,2081.3,2080.2,0.0011]
[1772725572999,3.86794292,2081.3,2080.2,1.20290751]
[1772725573196,3.86794292,2081.3,2080.3,0.829]
[1772725573900,3.86794292,2081.3,2080.2,1.20290751]
[1772725574106,3.86794292,2081.3,2080.3,0.829]
[1772725574320,2.66676765,2081.2,2080.4,0.829]
[1772725574483,2.66676765,2081.2,2080.2,0.0011]
[1772725574688,2.66676765,2081.2,2080.5,0.829]
[1772725574982,1.20117527,2081.3,2080.6,0.829]
[1772725575182,1.20111463,2081.4,2080.7,1.20151871]
[1772725575388,2.61174152,2081.5,2080.7,1.20151871]
[1772725575590,1.41065059,2081.5,2080.7,1.20151871]
[1772725575887,1.41065059,2081.5,2080.7,2.07107797]
[1772725575888,2.61173363,2081.5,2080.7,2.07107797]
[1772725576085,1.41065059,2081.5,2080.7,2.07107797]
[1772725576307,1.25292688,2081.5,2080.8,0.86955926]
[1772725576494,1.20086221,2081.9,2080.8,0.86955926]
[1772725577090,3.9455901,2081.9,2081.0,1.2013455]
[1772725578614,1.20081244,2082.0,2081.0,1.2013455]
[1772725578823,9.84446512,2082.6,2081.1,0.04098321]
[1772725578824,3.94525921,2082.5,2081.1,0.04098321]
[1772725579037,2.74472789,2082.4,2081.1,0.04098321]
[1772725579190,2.74472789,2082.2,2080.8,4.80538202]
[1772725579392,2.74472789,2082.2,2081.2,0.83]
[1772725580203,2.74472789,2082.2,2081.2,0.8311]
[1772725580526,0.001,2081.8,2081.3,0.83]
[1772725580724,2.74572789,2081.8,2081.2,0.0011]
[1772725580927,2.74572789,2081.8,2081.2,0.8311]
[1772725581332,1.20094153,2081.7,2081.2,0.8311]
[1772725582028,1.20094153,2081.7,2081.2,0.0011]
[1772725582229,2.74472789,2081.6,2081.0,0.0011]
[1772725583307,3.96569205,2081.5,2081.1,0.83]
[1772725583532,1.20105693,2081.5,2081.1,0.83]
[1772725583710,3.94578482,2081.5,2081.0,0.0011]
[1772725584099,1.20105693,2081.5,2081.0,0.0011]
[1772725584306,2.74472789,2081.4,2081.0,0.0011]
[1772725584505,5.51102364,2081.4,2080.8,0.83]
[1772725584713,2.74472789,2081.4,2080.7,0.8311]
[1772725584915,2.74417789,2081.2,2080.7,0.0011]
[1772725585436,1.20128778,2081.1,2080.7,0.0011]
[1772725587130,1.20105693,2081.5,2080.7,0.0011]
[1772725587332,2.7664148,2081.4,2080.7,0.0011]
[1772725587539,3.94535023,2081.3,2080.7,0.0011]
[1772725587734,5.51045294,2081.2,2080.8,0.829]
[1772725587917,2.74417789,2081.2,2080.8,0.829]
[1772725589020,1.20117234,2081.3,2080.8,0.829]
[1772725589540,4.80468937,2081.4,2080.8,0.829]
[1772725589541,4.80468937,2081.5,2080.8,0.829]
[1772725589717,2.76766258,2081.4,2080.8,2.03045575]
[1772725589918,2.76766258,2081.4,2080.7,0.0011]
[1772725590120,5.51184047,2081.4,2080.8,0.829]
[1772725590318,2.74417789,2081.4,2080.8,0.829]
[1772725590520,4.80468937,2081.5,2080.9,0.829]
[1772725591020,4.80411763,2081.6,2080.9,0.829]
[1772725591220,5.51163328,2081.5,2080.9,0.829]
[1772725591422,1.20111463,2081.4,2080.9,0.829]
[1772725592294,3.94529252,2081.4,2080.7,0.0011]
[1772725592460,2.74417789,2081.2,2080.2,8.58976443]
[1772725592753,2.74362789,2081.3,2080.2,9.79157022]
[1772725592953,2.74362789,2081.1,2080.2,9.79155281]
[1772725593336,2.74362789,2081.1,2081.0,0.0011]
[1772725593513,3.94503112,2080.9,2080.3,0.829]
[1772725593921,1.20138085,2081.0,2080.8,0.0011]
[1772725594127,1.20123005,2081.2,2080.9,0.829]
[1772725594422,4.80445853,2081.5,2080.9,0.829]
[1772725594623,2.74362789,2081.3,2080.8,0.0011]
[1772725595161,4.80445853,2081.5,2080.8,0.0011]
[1772725595719,2.74362789,2081.5,2080.8,0.0011]
[1772725595942,2.74362789,2081.3,2080.8,0.0011]
[1772725596175,2.76686448,2081.2,2080.8,0.8301]
[1772725596345,2.74362789,2081.2,2080.8,0.8301]
[1772725596751,2.74362789,2081.2,2080.8,0.0011]
[1772725597777,1.20128778,2081.1,2080.8,0.0011]
[1772725599304,1.20128778,2081.1,2080.5,0.0011]
[1772725599305,2.74362789,2080.9,2080.5,0.0011]
[1772725599800,1.20128778,2081.1,2080.5,0.0011]
[1772725599983,1.20128778,2081.1,2080.6,0.83]
[1772725600155,3.94491567,2081.1,2080.6,0.83]
[1772725600357,1.20128778,2081.1,2080.6,0.83]
[1772725600761,5.50642148,2081.0,2080.6,0.83]
[1772725601081,2.74362789,2081.0,2080.5,0.8311]
[1772725601583,2.74362789,2081.0,2080.5,0.0011]
[1772725601882,5.50724079,2080.9,2080.5,0.0011]
[1772725602055,3.94508886,2080.8,2080.4,0.83]
[1772725602256,2.74362789,2080.7,2080.2,1e-08]
[1772725602557,2.74362789,2080.5,2080.2,1e-08]
[1772725603571,2.74362789,2080.3,2080.2,1e-08]
[1772725603776,5.50654367,2080.3,2079.6,0.46204571]
[1772725603998,2.74362789,2080.3,2079.6,0.46204571]
[1772725604206,3.9454354,2080.2,2079.6,0.83]
[1772725604582,1.20146097,2080.8,2079.7,0.38195317]
[1772725604773,1.20146097,2080.8,2079.6,0.83]
[1772725604774,2.74362789,2080.6,2079.6,0.83]
[1772725604978,5.50651441,2080.5,2079.5,1.2033056]
[1772725605180,2.74362789,2080.3,2079.6,0.83]
[1772725606415,1.20180751,2080.2,2079.7,0.83]
[1772725606709,4.80664671,2080.5,2079.7,0.83]
[1772725606879,4.80664671,2080.5,2080.1,0.0011]
[1772725607084,2.74362789,2080.4,2080.1,0.0011]
[1772725608289,1.20174974,2080.3,2080.1,0.0011]
[1772725609018,7.5721513,2080.8,2080.1,0.0011]
[1772725609196,3.96774546,2080.8,2080.1,0.0011]
[1772725609386,2.76628449,2080.7,2080.1,0.0011]
[1772725609788,2.76628449,2080.5,2080.1,0.0011]
[1772725610382,1.20169198,2080.4,2080.1,0.0011]
[1772725610816,1.20167857,2080.5,2080.1,0.0011]
[1772725611396,1.20151871,2080.7,2080.1,0.0011]
[1772725612727,1.20230409,2081.1,2080.3,0.35950051]
[1772725612903,1.20229871,2081.1,2080.3,0.35950051]
[1772725613095,0.001,2081.1,2080.3,0.35950051]
[1772725613296,4.80424527,2081.5,2080.3,0.35950051]
[1772725613502,1.20111463,2081.4,2080.3,0.35950051]
[1772725614311,1.20099923,2081.6,2080.5,0.35427781]
[1772725614505,1.20099923,2081.6,2080.6,0.83]
[1772725615450,3.96728372,2081.6,2080.6,0.83]
[1772725616430,2.76628449,2081.5,2080.6,1.20157646]
[1772725616629,1.20099923,2081.6,2080.7,0.83]
[1772725616828,4.80481629,2081.7,2080.7,0.83]
[1772725616829,1.20195127,2081.7,2080.7,1.17172222]
[1772725617054,3.96823576,2081.7,2080.7,1.17172222]
[1772725617561,2.76628449,2081.6,2080.7,0.83]
[1772725618062,3.96823576,2081.7,2080.7,1.16755615]
[1772725618584,3.96823576,2081.7,2080.8,1.20146097]
[1772725618757,0.001,2081.4,2080.8,1.20146097]
[1772725619131,0.001,2081.4,2080.9,0.829]
[1772725619637,1.20196566,2081.7,2081.0,0.32819426]
[1772725620237,1.20196566,2081.7,2080.7,0.32819426]
[1772725620554,0.001,2081.7,2081.0,0.32819426]
[1772725621059,2.76728449,2081.7,2080.7,4.80590207]
[1772725621361,0.001,2081.7,2081.0,1.15301913]
[1772725621756,0.001,2081.3,2081.0,1.15301913]
[1772725621960,0.001,2081.7,2081.0,1.15301913]
[1772725622329,0.001,2081.7,2080.7,4.80590207]
[1772725622536,1.20194153,2081.7,2080.9,1.20140323]
[1772725622834,0.001,2081.7,2081.0,0.3157388]
[1772725623267,2.76728449,2081.7,2081.1,0.829]
[1772725623860,0.001,2081.7,2081.1,0.829]
[1772725624039,0.001,2081.7,2081.1,1.14059415]
[1772725624650,0.001,2081.7,2081.2,1.20123005]
[1772725625234,2.76728449,2081.7,2081.2,1.20123005]
[1772725625641,0.001,2081.5,2081.2,1.20123005]
[1772725625857,2.76728449,2081.7,2081.2,1.20123005]
[1772725626151,2.76728449,2081.7,2081.1,2.03025871]
[1772725626358,2.76728449,2081.7,2081.1,0.829]
[1772725626530,3.96827355,2081.7,2081.1,2.0302443]
[1772725626732,1.20198906,2081.7,2081.1,2.0302443]
[1772725627157,1.20194196,2081.7,2081.1,1.2012443]
[1772725627332,1.20194196,2081.7,2081.2,0.829]
[1772725627529,3.96822645,2081.7,2081.2,0.829]
[1772725627730,3.96822645,2081.7,2080.2,1.26731963]
[1772725627731,2.76628449,2081.4,2080.2,1.26731963]
[1772725627938,2.76628449,2081.4,2080.3,3.0645995]
[1772725628558,2.76628449,2081.4,2080.3,1.94050858]
[1772725628760,3.96740709,2081.4,2080.4,2.32229347]
[1772725629070,3.96740709,2081.4,2080.5,1.12060149]
[1772725629445,3.96740709,2081.4,2080.6,0.829]
[1772725630268,4.80409501,2081.6,2081.2,0.0011]
[1772725630578,0.001,2081.5,2081.2,0.0011]
[1772725630772,0.001,2081.5,2081.2,0.8301]
[1772725631909,0.001,2081.5,2081.2,0.0011]
[1772725631910,2.76628449,2081.4,2081.2,0.0011]
[1772725632051,2.76628449,2081.4,2081.0,0.0011]
[1772725632604,2.76628449,2081.4,2080.7,0.0011]
[1772725632754,2.76628449,2081.2,2080.1,0.8301]
[1772725632949,2.76628449,2081.2,2080.2,0.0011]
[1772725634352,2.76628449,2081.4,2080.3,1.12814282]
[1772725634772,3.96745683,2081.3,2080.4,0.8301]
[1772725634977,2.76628449,2080.7,2080.1,0.0011]
[1772725636880,2.76628449,2080.5,2080.1,0.0011]
[1772725638865,2.6765745,2080.3,2079.8,0.0011]
[1772725639180,2.6765745,2080.3,2080.0,0.0011]
[1772725639990,2.6765745,2080.3,2079.5,0.0011]
[1772725639991,2.53730512,2080.2,2079.5,0.0011]
[1772725640288,2.53730512,2080.2,2078.4,1.20283845]
[1772725640289,2.67877449,2079.4,2078.4,1.20283845]
[1772725640489,2.67877449,2079.4,2078.3,5.63969321]
[1772725640490,0.00219999,2079.4,2078.7,0.0011]
[1772725640665,0.00109999,2079.4,2079.0,1.20359679]
[1772725640869,3.87865645,2079.8,2079.0,0.0011]
[1772725641181,4.80742404,2080.2,2079.1,1.10531467]
[1772725641357,2.6765745,2080.2,2079.1,1.10531467]
[1772725642364,1.20174974,2080.3,2079.1,1.10531467]
[1772725642712,2.6765745,2080.5,2079.1,1.10531467]
[1772725642863,3.87820986,2080.5,2079.3,1.12409425]
[1772725643063,3.87820986,2080.5,2079.4,0.828]
[1772725643263,0.001,2080.3,2079.3,1.12409425]
[1772725643465,0.001,2080.3,2079.4,0.828]
[1772725643993,0.39,2093.7,2079.5,1.12046304]
[1772725643994,2.6765745,2081.1,2079.5,1.12046304]
[1772725644197,5.21440112,2081.4,2079.9,1.11946304]
[1772725644372,6.41552035,2081.4,2079.9,1.11946304]
[1772725645297,2.6765745,2081.0,2079.4,5.92472066]
[1772725645500,2.6765745,2081.0,2079.5,1.11583068]
[1772725645698,2.6765745,2081.3,2079.7,1.11221847]
[1772725646880,2.6765745,2081.3,2079.8,1.93297383]
[1772725647192,2.6765745,2081.3,2079.9,2.02998086]
[1772725647193,1.20123005,2081.2,2079.9,2.02998086]
[1772725647368,2.68111314,2081.1,2080.0,0.827]
[1772725647964,1.20120759,2081.3,2080.2,1.10576084]
[1772725648569,1.20210671,2081.5,2080.2,1.10576084]
[1772725649009,0.001,2081.5,2080.2,1.10576084]
[1772725649370,0.001,2081.5,2080.4,1.10211019]
[1772725649567,5.37096658,2081.3,2080.3,1.20174974]
[1772725649773,2.68111314,2081.3,2080.3,1.20174974]
[1772725650719,0.001,2081.5,2080.3,2.29657963]
[1772725650875,0.001,2081.5,2080.4,1.09482989]
[1772725651285,0.001,2081.7,2080.7,1.09382989]
[1772725651485,0.001,2081.7,2080.9,1.20140323]
[1772725651684,0.001,2081.7,2081.0,1.09021039]
[1772725652996,2.68211314,2081.7,2080.8,0.827]
[1772725653398,1.20099923,2081.6,2080.9,1.20140323]
[1772725654384,1.20099923,2081.6,2080.8,0.827]
[1772725654385,2.68111314,2081.5,2080.8,0.827]
[1772725655220,2.68211314,2081.5,2080.2,1.94060858]
[1772725655425,2.68111314,2081.3,2080.4,1.20169198]
[1772725655781,2.68111314,2081.3,2080.3,2.02870472]
[1772725656885,2.68111314,2081.3,2079.9,4.83888532]
[1772725656890,2.68111314,2081.3,2080.0,4.80758527]
[1772725657216,2.68111314,2081.3,2080.1,0.828]
[1772725657401,1.20123005,2081.2,2080.2,1.20180751]
[1772725657580,2.68111314,2081.1,2080.2,1.20180751]
[1772725658382,2.68111314,2081.1,2080.3,0.828]
[1772725659594,1.2013455,2081.0,2080.4,1.20169198]
[1772725659996,1.2013455,2081.0,2080.4,2.02869198]
[1772725662114,3.88243742,2081.1,2080.4,2.02869198]
[1772725663009,2.68111314,2081.4,2080.4,2.02869198]
[1772725663208,7.48580209,2081.4,2080.4,2.02869198]
[1772725663517,2.68111314,2081.3,2080.5,0.827]
[1772725664019,2.68111314,2081.2,2080.6,1.20157646]
[1772725664314,2.68111314,2081.4,2080.6,1.20157646]
[1772725664519,2.68111314,2081.4,2080.5,2.02859967]
[1772725666086,3.88227266,2081.4,2080.5,2.02859967]
[1772725666291,0.001,2081.5,2080.5,3.17273654]
[1772725666490,1.20206255,2081.5,2080.6,1.14413687]
[1772725667008,0.001,2081.5,2080.6,1.14413687]
[1772725667200,0.001,2081.7,2080.6,1.14413687]
[1772725667396,2.68111314,2081.6,2080.7,0.0011]
[1772725667692,2.68111314,2081.6,2080.8,0.828]
[1772725668118,3.88215755,2081.6,2080.9,1.20140323]
[1772725668301,2.68111314,2081.6,2080.9,1.20140323]
[1772725668497,0.001,2081.8,2081.0,1.13639127]
[1772725669121,0.001,2081.8,2081.1,0.828]
[1772725669513,0.001,2081.8,2081.1,1.95673178]
[1772725669698,0.001,2081.8,2081.2,1.12930996]
[1772725670091,2.74136368,2082.2,2081.3,2.47885738]
[1772725670311,4.09008975,2082.8,2081.4,1.27768504]
[1772725670819,2.88973876,2082.7,2081.5,0.828]
[1772725671389,2.88973876,2082.7,2081.6,1.27393039]
[1772725671591,1.20035099,2082.8,2081.6,1.27393039]
[1772725671797,2.88973876,2083.0,2081.6,1.27393039]
[1772725671798,4.0899689,2083.0,2081.6,1.27393039]
[1772725671999,4.0899689,2083.0,2081.7,0.828]
[1772725672198,4.0899689,2083.0,2081.9,1.20082616]
[1772725672405,2.88973876,2082.9,2082.0,0.828]
[1772725672604,2.88973876,2082.9,2082.1,0.828]
[1772725673023,2.88973876,2082.9,2082.2,0.828]
[1772725674221,4.09004603,2082.8,2081.9,2.02882616]
[1772725674421,7.68983044,2083.3,2082.0,1.26700918]
[1772725674624,2.88973876,2083.2,2082.0,1.26700918]
[1772725674806,2.88973876,2083.2,2082.1,0.828]
[1772725675510,2.88973876,2083.2,2082.0,1.26700918]
[1772725675830,2.88973876,2083.2,2082.1,0.828]
[1772725675997,2.88973876,2083.2,2082.2,0.828]
[1772725676199,2.88973876,2083.0,2081.7,4.80360074]
[1772725676520,2.88973876,2083.0,2081.8,0.828]
[1772725676724,2.88973876,2083.0,2081.9,1.25579571]
[1772725677924,4.80022223,2083.3,2081.9,1.25579571]
[1772725678223,7.68996099,2083.3,2082.0,1.20076849]
[1772725678414,7.68996099,2083.3,2082.2,1.25206595]
[1772725679030,4.08975796,2083.3,2082.2,1.25206595]
[1772725679405,2.88973876,2083.6,2082.2,1.25206595]
[1772725679610,0.001,2083.0,2082.2,1.25206595]
[1772725680011,4.08952759,2083.7,2082.2,1.24360553]
[1772725680233,2.88973876,2083.6,2082.2,1.24360553]
[1772725680529,4.08964276,2083.5,2082.4,2.44414337]
[1772725680701,4.08964276,2083.5,2082.5,1.23988666]
[1772725680901,2.88973876,2083.5,2082.5,1.23988666]
[1772725681503,2.88973876,2083.9,2082.7,1.236223]
[1772725681702,1.20059681,2084.1,2082.9,1.236223]
[1772725682002,2.88973876,2084.0,2082.9,2.05319682]
[1772725682513,4.08941244,2083.9,2083.0,2.02819203]
[1772725682718,2.0,2083.2,2083.1,1.23251179]
[1772725682934,0.001,2084.1,2083.2,1.23251179]
[1772725683125,0.001,2084.1,2083.3,0.828]
[1772725683448,0.001,2084.1,2083.4,0.828]
[1772725683449,2.88973876,2084.0,2083.4,0.828]
[1772725684443,0.001,2084.1,2083.4,0.828]
[1772725684644,0.001,2084.1,2083.5,2.48326597]
[1772725684826,0.001,2084.1,2083.6,0.828]
[1772725684996,0.001,2084.1,2083.5,2.48326597]
[1772725685201,0.001,2084.1,2083.3,1.2000192]
[1772725685403,0.001,2084.1,2083.6,0.828]
[1772725686418,0.001,2084.1,2083.3,2.47953123]
[1772725686604,0.001,2084.1,2083.4,0.828]
[1772725686807,0.001,2084.1,2083.5,1.27566134]
[1772725687396,4.08905303,2084.6,2083.5,1.27566134]
[1772725688198,2.88973876,2084.9,2083.5,1.27566134]
[1772725688434,1.19902214,2085.1,2083.7,1.27082286]
[1772725688632,2.88973876,2085.1,2083.9,1.27082286]
[1772725688814,2.88973876,2085.1,2084.0,0.828]
[1772725689011,2.88973876,2085.1,2084.1,1.26704113]
[1772725689218,4.08855221,2085.4,2084.3,1.26704113]
[1772725689731,6.63373443,2085.8,2084.3,1.26704113]
[1772725690237,2.88973876,2085.7,2084.3,1.26704113]
[1772725690637,2.88973876,2086.0,2084.7,1.25936856]
[1772725691015,2.88973876,2086.3,2085.1,1.25936856]
[1772725691216,4.08806911,2086.3,2085.3,1.25936856]
[1772725691422,4.08806911,2086.3,2085.4,0.828]
[1772725691616,4.08806911,2086.3,2085.5,0.828]
[1772725691617,2.88973876,2086.2,2085.5,0.828]
[1772725692221,2.88973876,2086.2,2084.9,1.25554101]
[1772725692417,0.001,2085.6,2085.0,0.827]
[1772725692619,0.001,2085.6,2085.1,1.19898326]
[1772725693023,0.001,2085.6,2085.2,0.827]
[1772725693338,0.001,2085.6,2085.1,1.19898326]
[1772725693664,2.89073876,2085.6,2085.3,0.001]
[1772725693845,0.001,2085.6,2085.0,0.827]
[1772725694010,0.001,2085.6,2085.1,0.827]
[1772725694211,2.89073876,2085.6,2085.1,0.827]
[1772725694439,2.89073876,2085.6,2085.0,0.827]
[1772725694810,2.89073876,2085.6,2084.8,1.19912166]
[1772725694811,1.19875329,2085.5,2084.8,1.19912166]
[1772725695039,7.68575194,2085.6,2084.9,0.827]
[1772725695040,1.19973791,2085.6,2084.9,0.827]
[1772725695612,1.1997014,2085.6,2085.3,0.001]
[1772725695812,0.001,2085.6,2084.9,0.827]